bitfinex/quotes_SOLUSD_20250924
["timestamp","ask_amount","ask_price","bid_price","bid_amount"]
[1758674296943,26.0,214.28,214.26,4.66722673]
[1758674297268,26.0,214.28,214.26,5.37722673]
[1758674298570,26.0,214.28,214.26,4.66722673]
[1758674299171,26.0,214.28,214.27,0.71]
[1758674299471,26.0,214.28,214.26,4.66722673]
[1758674300058,26.0,214.28,214.21,29.93470048]
[1758674300375,26.0,214.28,214.21,30.64470048]
[1758674300670,26.0,214.28,214.22,0.7]
[1758674301768,159.9,214.31,214.22,0.7]
[1758674302077,160.47,214.31,214.22,0.7]
[1758674302278,160.47,214.31,214.23,16.33758109]
[1758674302601,0.57,214.3,214.23,16.33758109]
[1758674303447,159.9,214.31,214.24,0.7]
[1758674303665,0.57,214.3,214.24,0.7]
[1758674304772,159.9,214.31,214.24,0.7]
[1758674305477,133.9,214.3,214.25,4.66744457]
[1758674305861,134.47,214.3,214.25,4.66744457]
[1758674306261,134.47,214.3,214.25,5.36744457]
[1758674306465,0.57,214.29,214.25,4.66744457]
[1758674307364,0.57,214.29,214.24,16.33681851]
[1758674307689,133.9,214.3,214.24,17.03681851]
[1758674307987,133.9,214.3,214.25,0.7]
[1758674308870,133.9,214.3,214.24,16.33681851]
[1758674308871,133.9,214.3,214.26,0.7]
[1758674309073,133.9,214.29,214.26,0.7]
[1758674309275,133.9,214.29,214.27,5.36700891]
[1758674309863,133.9,214.29,214.27,4.66700891]
[1758674311189,133.9,214.29,214.27,5.36700891]
[1758674311601,133.9,214.29,214.28,0.7]
[1758674311767,26.0,214.32,214.28,0.7]
[1758674312872,0.57,214.31,214.27,4.66700891]
[1758674313073,0.57,214.3,214.27,4.66700891]
[1758674313384,138.56512636,214.36,214.27,4.66700891]
[1758674313385,36.52,214.35,214.28,0.7]
[1758674313590,26.0,214.32,214.29,4.66657333]
[1758674313791,26.0,214.32,214.3,0.7]
[1758674314090,26.0,214.33,214.3,0.7]
[1758674314472,26.0,214.33,214.29,16.33300666]
[1758674314788,170.42,214.36,214.3,0.7]
[1758674315093,26.0,214.33,214.31,4.66613783]
[1758674315291,26.0,214.33,214.31,5.36613783]
[1758674315877,133.9,214.36,214.32,0.7]
[1758674316178,133.9,214.36,214.33,0.7]
[1758674317184,133.9,214.36,214.34,4.66548474]
[1758674317969,133.9,214.36,214.34,5.36548474]
[1758674319090,133.9,214.36,214.35,0.7]
[1758674320291,26.0,214.37,214.35,0.7]
[1758674320665,26.0,214.37,214.36,4.66504944]
[1758674321067,0.57,214.41,214.36,4.66504944]
[1758674321068,26.0,214.39,214.36,17.02767306]
[1758674321885,0.57,214.41,214.36,17.02767306]
[1758674322083,133.9,214.4,214.36,17.02767306]
[1758674322373,26.0,214.38,214.34,0.7]
[1758674322574,26.0,214.38,214.35,0.7]
[1758674322786,26.0,214.38,214.32,13.59559401]
[1758674322977,26.0,214.38,214.36,0.7]
[1758674323572,26.0,214.38,214.37,5.36483183]
[1758674323981,133.9,214.4,214.37,17.02691141]
[1758674324182,0.57,214.45,214.37,17.02691141]
[1758674324390,37.09,214.45,214.38,0.7]
[1758674324583,26.0,214.42,214.38,0.7]
[1758674325114,26.0,214.42,214.37,16.32691141]
[1758674325280,133.9,214.47,214.39,0.7]
[1758674325281,26.0,214.44,214.39,0.7]
[1758674325477,3.83562422,214.46,214.4,16.32462686]
[1758674325672,134.47,214.47,214.41,0.7]
[1758674325866,26.0,214.44,214.41,0.7]
[1758674326194,134.47,214.47,214.41,0.7]
[1758674326398,137.71389052,214.47,214.4,16.32462686]
[1758674326691,26.0,214.44,214.4,16.32462686]
[1758674326901,0.57,214.43,214.4,4.6641791]
[1758674327274,26.0,214.44,214.4,5.3641791]
[1758674327773,26.0,214.44,214.41,0.7]
[1758674327974,26.0,214.44,214.42,0.7]
[1758674328390,26.0,214.44,214.4,16.32462686]
[1758674328597,133.9,214.47,214.43,0.7]
[1758674328997,133.9,214.47,214.44,0.7]
[1758674329199,138.12847152,214.47,214.41,0.7]
[1758674329678,138.12847152,214.47,214.42,16.32310418]
[1758674330005,138.12847152,214.47,214.42,17.02310418]
[1758674330200,137.55847152,214.47,214.42,16.32310418]
[1758674330384,26.0,214.44,214.42,16.32310418]
[1758674331399,26.0,214.44,214.42,11.65936013]
[1758674332398,133.9,214.47,214.43,0.7]
[1758674332614,159.9,214.47,214.43,0.7]
[1758674333604,26.0,214.45,214.44,16.32158179]
[1758674334802,26.0,214.45,214.44,17.02158179]
[1758674335681,26.0,214.45,214.41,16.32386548]
[1758674335879,26.0,214.45,214.42,0.7]
[1758674336088,26.0,214.45,214.43,0.7]
[1758674336289,133.9,214.47,214.44,0.7]
[1758674336511,133.9,214.47,214.45,0.7]
[1758674336695,26.0,214.49,214.46,0.7]
[1758674337707,3.75532967,214.51,214.47,16.31929873]
[1758674337912,0.57,214.5,214.47,4.66265678]
[1758674338090,26.57,214.49,214.47,4.66265678]
[1758674338289,26.0,214.49,214.47,4.66265678]
[1758674338699,26.57,214.49,214.44,4.66330908]
[1758674339012,26.0,214.47,214.44,4.66330908]
[1758674339912,26.0,214.47,214.44,16.32158179]
[1758674340131,26.0,214.47,214.44,17.02158179]
[1758674341714,26.0,214.47,214.44,5.36330908]
[1758674341904,26.0,214.47,214.44,4.66330908]
[1758674342096,26.0,214.47,214.45,0.7]
[1758674342294,26.0,214.47,214.44,16.32158179]
[1758674342496,26.0,214.47,214.44,17.02158179]
[1758674343102,0.57,214.5,214.44,16.32158179]
[1758674343298,26.0,214.48,214.45,0.7]
[1758674343613,133.9,214.51,214.46,0.7]
[1758674343808,133.9,214.51,214.48,16.31853785]
[1758674343992,0.57,214.5,214.48,4.66243938]
[1758674344191,137.61469965,214.51,214.46,4.66287419]
[1758674344192,26.0,214.48,214.46,4.66287419]
[1758674344604,26.57,214.48,214.46,4.66287419]
[1758674345305,0.57,214.47,214.42,11.65905607]
[1758674345695,26.0,214.48,214.42,11.65905607]
[1758674345901,26.0,214.48,214.43,0.7]
[1758674346414,26.0,214.46,214.41,0.7]
[1758674346614,26.0,214.46,214.42,0.7]
[1758674347111,26.0,214.46,214.43,0.7]
[1758674347309,26.0,214.46,214.44,0.7]
[1758674347505,26.0,214.48,214.45,0.7]
[1758674348011,26.0,214.48,214.46,4.66287419]
[1758674348513,26.0,214.5,214.47,0.7]
[1758674348692,37.05,214.54,214.48,0.7]
[1758674348893,36.48,214.54,214.48,0.7]
[1758674349106,26.0,214.51,214.48,0.7]
[1758674349498,26.0,214.51,214.49,0.7]
[1758674350609,26.0,214.52,214.5,4.66200466]
[1758674351196,26.0,214.52,214.5,17.01701631]
[1758674351521,0.57,214.55,214.5,17.01701631]
[1758674351718,62.48,214.56,214.5,17.01701631]
[1758674352108,66.19529971,214.56,214.5,17.01701631]
[1758674352305,26.0,214.56,214.5,16.31701631]
[1758674352511,0.57,214.57,214.51,0.7]
[1758674352812,26.0,214.55,214.52,16.31549505]
[1758674353115,0.2,214.58,214.52,17.01549505]
[1758674353419,26.0,214.56,214.53,0.7]
[1758674354420,26.0,214.56,214.54,4.66113545]
[1758674354913,26.0,214.56,214.52,4.66149778]
[1758674355143,0.57,214.55,214.52,4.66149778]
[1758674356018,0.57,214.54,214.5,4.66179488]
[1758674356220,26.0,214.56,214.5,4.66179488]
[1758674356515,0.57,214.53,214.47,17.01913136]
[1758674357418,26.57,214.56,214.48,0.7]
[1758674357610,26.0,214.56,214.49,13.59559401]
[1758674357801,26.0,214.55,214.5,0.7]
[1758674358405,26.0,214.56,214.51,16.31625564]
[1758674358611,26.0,214.56,214.51,17.01625564]
[1758674358928,26.0,214.56,214.52,0.7]
[1758674359224,26.0,214.56,214.51,16.31625564]
[1758674359441,26.0,214.56,214.53,0.7]
[1758674359804,26.0,214.56,214.54,0.7]
[1758674360199,26.0,214.56,214.51,16.31625564]
[1758674360425,0.2,214.58,214.53,16.31473453]
[1758674360810,0.2,214.58,214.54,0.72]
[1758674361012,0.2,214.58,214.55,0.72]
[1758674361211,133.9,214.57,214.55,0.72]
[1758674362413,133.9,214.57,214.56,4.66070096]
[1758674362724,134.47,214.57,214.52,4.66157001]
[1758674362912,133.9,214.57,214.5,4.66179174]
[1758674363098,0.57,214.56,214.5,16.31680339]
[1758674363529,0.57,214.56,214.5,17.03680339]
[1758674364022,26.0,214.54,214.5,16.31680339]
[1758674364604,26.0,214.54,214.5,17.03680339]
[1758674364928,26.57,214.54,214.5,16.31680339]
[1758674366532,26.0,214.54,214.51,0.72]
[1758674366726,26.57,214.54,214.5,11.65501165]
[1758674367330,26.0,214.54,214.5,11.65501165]
[1758674367507,26.0,214.54,214.5,12.37501165]
[1758674367709,26.0,214.54,214.49,4.66222201]
[1758674367710,26.57,214.54,214.49,4.66222201]
[1758674368017,26.57,214.54,214.49,5.38222201]
[1758674369316,26.57,214.54,214.47,17.03889989]
[1758674369317,0.57,214.53,214.47,17.03889989]
[1758674369737,26.0,214.52,214.47,17.03889989]
[1758674369909,133.9,214.51,214.47,5.38265678]
[1758674370108,133.9,214.51,214.42,13.59559401]
[1758674370109,26.0,214.48,214.45,5.38308153]
[1758674370806,26.0,214.48,214.46,0.72]
[1758674371013,133.9,214.51,214.46,0.72]
[1758674371420,133.9,214.51,214.47,16.31929873]
[1758674371609,133.9,214.51,214.48,0.72]
[1758674371807,26.0,214.52,214.48,0.72]
[1758674372210,26.0,214.53,214.48,0.72]
[1758674372412,36.46,214.56,214.48,0.72]
[1758674372703,1.16771489,214.55,214.48,0.72]
[1758674372907,26.0,214.56,214.49,13.59559401]
[1758674373124,26.0,214.56,214.5,0.72]
[1758674373516,26.0,214.56,214.51,16.31625564]
[1758674373708,0.2,214.58,214.52,0.72]
[1758674374109,26.2,214.58,214.52,0.72]
[1758674374943,0.2,214.58,214.52,0.72]
[1758674375423,0.2,214.58,214.53,16.31473453]
[1758674375746,0.2,214.58,214.54,0.72]
[1758674376909,0.2,214.58,214.55,16.3132137]
[1758674377119,0.2,214.58,214.56,0.72]
[1758674378129,0.2,214.58,214.57,13.59559401]
[1758674378331,0.2,214.58,214.57,0.72]
[1758674378939,1e-08,214.58,214.57,5.38048375]
[1758674379439,1e-08,214.58,214.57,4.66048375]
[1758674381033,1e-08,214.58,214.55,16.3132137]
[1758674381239,1e-08,214.58,214.56,0.72]
[1758674381542,1e-08,214.58,214.55,17.0332137]
[1758674381737,1e-08,214.58,214.56,0.72]
[1758674382138,1e-08,214.58,214.57,4.66048375]
[1758674382834,1e-08,214.58,214.57,5.38048375]
[1758674383340,1e-08,214.58,214.57,4.66048375]
[1758674385430,1e-08,214.58,214.57,5.38048375]
[1758674386427,1e-08,214.58,214.57,4.66048375]
[1758674387649,1e-08,214.58,214.56,4.66070096]
[1758674387834,1e-08,214.58,214.56,5.38070096]
[1758674388451,1e-08,214.58,214.57,0.72]
[1758674389723,1e-08,214.58,214.57,5.38048375]
[1758674389944,1e-08,214.58,214.57,4.66048375]
[1758674391945,1e-08,214.58,214.56,4.66070096]
[1758674392129,1e-08,214.58,214.56,5.33070096]
[1758674392949,0.57000001,214.58,214.53,4.66135272]
[1758674393731,0.57000001,214.58,214.53,5.33135272]
[1758674395544,1e-08,214.58,214.54,0.67]
[1758674395852,1e-08,214.58,214.53,16.98473453]
[1758674396054,1e-08,214.58,214.54,0.67]
[1758674396363,1e-08,214.58,214.55,4.6609182]
[1758674397853,1e-08,214.58,214.55,5.3309182]
[1758674398355,1e-08,214.58,214.56,0.67]
[1758674399056,1e-08,214.58,214.57,0.67]
[1758674399849,1e-08,214.58,214.57,5.33048375]
[1758674401947,1e-08,214.58,214.57,4.66048375]
[1758674402752,133.9,214.64,214.58,13.59559401]
[1758674402956,133.9,214.64,214.6,13.59559401]
[1758674403162,133.9,214.64,214.61,0.67]
[1758674403545,0.2,214.67,214.62,13.59559401]
[1758674403862,0.2,214.67,214.64,16.30637345]
[1758674404061,0.2,214.67,214.65,3.47859322]
[1758674404262,0.2,214.67,214.65,0.67]
[1758674404451,0.2,214.67,214.66,0.67]
[1758674405364,0.2,214.67,214.64,16.97637345]
[1758674405564,0.2,214.67,214.65,4.14476852]
[1758674405767,0.2,214.67,214.65,0.67]
[1758674405956,0.2,214.67,214.66,0.67]
[1758674406559,0.2,214.67,214.63,0.67]
[1758674406761,0.2,214.67,214.64,4.14437175]
[1758674406955,0.2,214.67,214.65,3.47437175]
[1758674407152,0.2,214.67,214.65,0.67]
[1758674408261,0.2,214.67,214.66,4.65852976]
[1758674408754,0.2,214.67,214.66,5.32852976]
[1758674409061,0.2,214.67,214.66,4.65852976]
[1758674409656,0.2,214.67,214.66,5.32852976]
[1758674409854,0.2,214.67,214.66,8.79959056]
[1758674414853,0.2,214.67,214.66,22.39518457]
[1758674415468,0.2,214.67,214.66,8.79959056]
[1758674415655,0.2,214.67,214.66,8.12959056]
[1758674416769,0.77,214.67,214.66,3.4710608]
[1758674416952,0.77,214.67,214.61,4.65961511]
[1758674417148,26.0,214.63,214.62,3.4691877]
[1758674417379,26.57,214.63,214.62,3.4691877]
[1758674417951,26.0,214.63,214.62,3.4691877]
[1758674418468,26.0,214.61,214.57,4.66048375]
[1758674418670,26.57,214.61,214.58,3.47181228]
[1758674418858,26.57,214.61,214.59,3.47181228]
[1758674419057,0.57,214.61,214.57,4.66048375]
[1758674419368,0.57,214.61,214.58,3.47232348]
[1758674419568,0.57,214.61,214.59,3.47232348]
[1758674419750,0.57,214.61,214.6,3.47232348]
[1758674420160,0.57,214.61,214.54,13.59559401]
[1758674420372,0.57,214.61,214.55,3.47330716]
[1758674420564,26.0,214.59,214.56,3.47330716]
[1758674420765,26.0,214.59,214.57,3.47330716]
[1758674420948,0.57,214.59,214.58,3.47330716]
[1758674421571,26.0,214.58,214.51,36.42]
[1758674421752,0.57,214.57,214.52,3.47480635]
[1758674421954,0.57,214.56,214.53,3.47480635]
[1758674422262,0.57,214.55,214.54,3.47480635]
[1758674422860,26.57,214.55,214.54,3.47480635]
[1758674423263,26.0,214.54,214.5,4.66199208]
[1758674423574,26.57,214.54,214.51,3.47547466]
[1758674423873,0.57,214.53,214.48,4.66242994]
[1758674424170,0.57,214.53,214.44,36.42]
[1758674424171,0.57,214.52,214.49,3.47639693]
[1758674424377,0.57,214.51,214.45,0.72]
[1758674424552,0.57,214.51,214.46,3.47592938]
[1758674424759,0.57,214.51,214.47,3.47592938]
[1758674424957,0.57,214.51,214.48,3.47592938]
[1758674425190,0.57,214.51,214.46,4.66286571]
[1758674425360,0.57,214.51,214.47,3.47487463]
[1758674425675,0.57,214.51,214.48,3.47487463]
[1758674425874,0.57,214.5,214.46,4.66286571]
[1758674426073,0.57,214.52,214.47,3.47463882]
[1758674426272,0.57,214.51,214.48,3.47463882]
[1758674426576,0.57,214.51,214.46,4.66286571]
[1758674426767,3.72541293,214.52,214.47,3.4733338]
[1758674426971,3.72541293,214.52,214.46,4.66286571]
[1758674426972,26.0,214.49,214.48,3.47333117]
[1758674427476,26.0,214.49,214.47,3.47333117]
[1758674427679,26.0,214.5,214.48,3.47333117]
[1758674427978,26.0,214.5,214.46,4.66286571]
[1758674428186,26.0,214.5,214.47,3.47213834]
[1758674428386,26.0,214.5,214.46,5.38286571]
[1758674428590,26.0,214.5,214.47,3.4710101]
[1758674428781,26.57,214.5,214.46,4.66286571]
[1758674428961,26.57,214.5,214.47,3.47101192]
[1758674429158,0.57,214.5,214.46,4.66286571]
[1758674429363,0.57,214.5,214.47,3.46998383]
[1758674430895,0.57,214.5,214.41,0.72]
[1758674430896,36.99,214.49,214.41,0.72]
[1758674431062,0.57,214.48,214.42,3.47072413]
[1758674431380,0.57,214.47,214.39,5.38427774]
[1758674431580,0.57,214.46,214.4,3.46960058]
[1758674431784,0.57,214.46,214.41,3.46960058]
[1758674431975,36.42,214.45,214.42,3.46960058]
[1758674432284,36.99,214.45,214.39,5.38427774]
[1758674432475,36.99,214.45,214.4,3.46782979]
[1758674432672,36.99,214.45,214.41,3.46782979]
[1758674432874,36.99,214.45,214.39,4.66427774]
[1758674433073,62.99,214.45,214.4,3.46817529]
[1758674433688,62.99,214.45,214.4,0.72]
[1758674433861,0.57,214.44,214.38,0.72]
[1758674434067,26.0,214.42,214.38,5.38451845]
[1758674434267,26.57,214.42,214.35,0.82]
[1758674434478,26.0,214.38,214.35,5.48507529]
[1758674434694,26.0,214.38,214.36,0.72]
[1758674434988,36.42,214.49,214.37,0.72]
[1758674435190,26.0,214.46,214.37,0.72]
[1758674436169,26.0,214.42,214.37,0.72]
[1758674436370,26.0,214.42,214.38,0.72]
[1758674436671,26.0,214.42,214.39,4.66439666]
[1758674437985,26.0,214.42,214.39,5.38439666]
[1758674438992,62.44,214.44,214.39,5.38439666]
[1758674439970,63.01,214.44,214.39,5.38439666]
[1758674440169,63.01,214.44,214.39,4.66439666]
[1758674440170,62.44,214.44,214.39,4.66439666]
[1758674440370,1.45121432,214.41,214.39,4.66439666]
[1758674441276,1.45121432,214.41,214.38,4.66461423]
[1758674441591,1.45121432,214.41,214.38,5.38461423]
[1758674441980,133.9,214.4,214.38,5.38461423]
[1758674442380,133.9,214.4,214.39,0.72]
[1758674443802,133.9,214.4,214.39,5.38439666]
[1758674453176,133.9,214.4,214.39,5.37439666]
[1758674462099,75.25554652,214.4,214.39,18.96999067]
[1758674462284,26.0,214.46,214.4,13.59559401]
[1758674462483,26.0,214.46,214.42,1.45121432]
[1758674462900,26.0,214.46,214.43,0.71]
[1758674463108,26.0,214.46,214.44,0.71]
[1758674463790,26.0,214.48,214.44,0.71]
[1758674463982,26.57,214.48,214.43,16.32234294]
[1758674464183,26.57,214.48,214.43,17.03234294]
[1758674464601,26.0,214.48,214.44,0.71]
[1758674464816,26.0,214.47,214.43,16.32234294]
[1758674465119,26.0,214.47,214.46,4.66287419]
[1758674466394,59.06431709,214.51,214.46,16.32005967]
[1758674466395,26.0,214.48,214.46,16.32005967]
[1758674466586,26.0,214.48,214.46,17.03005967]
[1758674467294,26.0,214.48,214.44,0.71]
[1758674467601,26.0,214.48,214.45,0.71]
[1758674468305,26.0,214.48,214.46,4.66287419]
[1758674468507,26.0,214.48,214.47,0.71]
[1758674469414,21.17310277,214.51,214.47,0.71]
[1758674469797,21.17310277,214.51,214.48,0.71]
[1758674470407,21.17310277,214.51,214.49,4.66222201]
[1758674472414,21.17310277,214.51,214.48,16.31830559]
[1758674472719,21.17310277,214.51,214.48,17.02830559]
[1758674474517,21.17310277,214.51,214.49,0.69]
[1758674475126,21.17310277,214.51,214.46,2.26485556]
[1758674475301,21.17310277,214.51,214.47,0.69]
[1758674475924,21.17310277,214.51,214.48,0.69]
[1758674476520,21.17310277,214.51,214.49,4.66222201]
[1758674477525,21.17310277,214.51,214.49,5.35222201]
[1758674478224,21.17310277,214.51,214.49,4.66222201]
[1758674480911,21.17310277,214.51,214.49,5.35222201]
[1758674481126,21.17310277,214.51,214.49,4.66222201]
[1758674481418,21.17310277,214.51,214.5,0.69]
[1758674482402,21.17310277,214.51,214.5,5.35200466]
[1758674482797,26.0,214.54,214.5,30.60261032]
[1758674483022,26.0,214.54,214.51,0.69]
[1758674483338,26.0,214.54,214.52,0.69]
[1758674483535,6.56683627,214.58,214.5,29.91261032]
[1758674483738,0.57,214.57,214.51,0.69]
[1758674483911,26.0,214.55,214.51,0.69]
[1758674484113,26.0,214.55,214.5,29.91261032]
[1758674484331,26.0,214.55,214.51,0.69]
[1758674487128,26.0,214.55,214.52,16.31549505]
[1758674487334,26.0,214.56,214.53,0.69]
[1758674487508,26.0,214.56,214.52,16.31549505]
[1758674487509,26.0,214.56,214.54,0.69]
[1758674487837,47.17310277,214.59,214.52,16.31549505]
[1758674488047,47.17310277,214.59,214.54,0.69]
[1758674488234,47.17310277,214.59,214.55,0.69]
[1758674488913,26.0,214.57,214.56,4.66070096]
[1758674489507,26.0,214.58,214.56,4.66070096]
[1758674489809,26.0,214.58,214.56,5.35070096]
[1758674490028,26.0,214.58,214.56,4.66070096]
[1758674490914,26.0,214.58,214.55,16.31304813]
[1758674491108,26.0,214.58,214.55,17.00304813]
[1758674491728,26.0,214.58,214.56,0.69]
[1758674492307,26.0,214.58,214.55,12.34212993]
[1758674493939,26.0,214.58,214.55,17.00304813]
[1758674494308,26.0,214.58,214.55,16.31304813]
[1758674494525,26.0,214.58,214.56,0.69]
[1758674495238,0.57,214.57,214.54,4.66113545]
[1758674495419,0.57,214.56,214.54,4.66113545]
[1758674496028,28.83485556,214.58,214.54,4.66113545]
[1758674496230,0.57,214.57,214.54,4.66113545]
[1758674496430,26.57,214.57,214.52,16.31517095]
[1758674496609,26.57,214.57,214.52,17.00517095]
[1758674497537,0.57,214.57,214.52,17.00517095]
[1758674497930,0.57,214.57,214.41,20.0]
[1758674497931,2.26485556,214.54,214.46,0.69]
[1758674498239,2.26485556,214.52,214.44,2.26485556]
[1758674498532,26.0,214.49,214.45,4.66309162]
[1758674498838,0.57,214.48,214.45,4.66309162]
[1758674499012,26.0,214.49,214.45,4.66309162]
[1758674499615,26.57,214.48,214.45,4.66309162]
[1758674499814,26.0,214.48,214.45,4.66309162]
[1758674500023,0.57,214.47,214.45,4.66309162]
[1758674500316,26.0,214.48,214.42,2.95485556]
[1758674500819,26.57,214.48,214.42,2.95485556]
[1758674501634,26.57,214.48,214.42,19.27795974]
[1758674501830,0.57,214.48,214.42,19.27795974]
[1758674503116,0.57,214.48,214.44,4.66330908]
[1758674503316,28.26485556,214.49,214.44,5.35330908]
[1758674503514,2.83485556,214.58,214.49,13.59559401]
[1758674503749,40.10641686,214.61,214.47,0.69]
[1758674503750,2.26485556,214.53,214.47,0.69]
[1758674504053,28.26485556,214.53,214.47,0.69]
[1758674504438,28.26485556,214.53,214.48,3.47613448]
[1758674504743,0.57,214.52,214.49,3.47613448]
[1758674505048,26.0,214.49,214.44,4.66330908]
[1758674505290,26.57,214.49,214.45,3.47754061]
[1758674505415,26.57,214.49,214.46,3.47754061]
[1758674505612,26.57,214.49,214.47,3.47754061]
[1758674505833,26.57,214.49,214.48,3.47754061]
[1758674506342,26.57,214.49,214.44,5.35330908]
[1758674507551,26.0,214.49,214.44,17.01158179]
[1758674507768,26.0,214.5,214.47,2.26485556]
[1758674508051,26.0,214.5,214.47,2.95485556]
[1758674508862,0.57,214.58,214.48,5.35243938]
[1758674509072,0.57,214.57,214.49,15.86044957]
[1758674509272,0.57,214.56,214.49,2.26485556]
[1758674509970,0.57,214.56,214.49,2.95485556]
[1758674510272,0.57,214.56,214.5,4.66200466]
[1758674511070,69.54524876,214.58,214.5,4.66200466]
[1758674511071,0.57,214.55,214.5,4.66200466]
[1758674511774,0.57,214.55,214.5,5.34200466]
[1758674511937,5.23060849,214.57,214.5,5.34200466]
[1758674512442,0.57,214.56,214.48,0.68]
[1758674512666,0.57,214.56,214.49,2.26485556]
[1758674512845,26.0,214.55,214.49,2.26485556]
[1758674513751,26.0,214.55,214.48,0.68]
[1758674514066,26.0,214.53,214.49,4.66222201]
[1758674514239,21.17310277,214.52,214.49,5.34222201]
[1758674516765,26.0,214.49,214.46,2.94485556]
[1758674516968,26.0,214.49,214.46,4.6628231]
[1758674517362,26.0,214.49,214.44,12.33780483]
[1758674517363,26.0,214.49,214.44,7.60816037]
[1758674517684,26.57,214.49,214.44,7.60816037]
[1758674517841,26.0,214.49,214.44,7.60816037]
[1758674518176,28.26485556,214.49,214.44,4.66330481]
[1758674518383,28.26485556,214.49,214.44,5.34330481]
[1758674518684,28.26485556,214.49,214.45,0.68]
[1758674520184,28.26485556,214.49,214.43,4.66352655]
[1758674520369,28.26485556,214.49,214.45,0.68]
[1758674520558,28.26485556,214.49,214.45,5.3428886]
[1758674521757,2.26485556,214.47,214.39,0.68]
[1758674521958,28.26485556,214.43,214.38,5.34461423]
[1758674522363,2.26485556,214.41,214.38,5.34461423]
[1758674523184,2.26485556,214.39,214.36,50.11559401]
[1758674523479,2.26485556,214.39,214.36,5.34501869]
[1758674525280,2.26485556,214.4,214.37,0.68]
[1758674525452,26.0,214.43,214.36,16.32764231]
[1758674525647,2.26485556,214.4,214.37,0.68]
[1758674525889,0.57,214.49,214.38,0.68]
[1758674526101,36.54,214.48,214.39,13.59559401]
[1758674526371,26.0,214.45,214.4,0.68]
[1758674526561,28.26485556,214.45,214.4,0.68]
[1758674526879,2.26485556,214.47,214.42,4.66374405]
[1758674527052,2.26485556,214.47,214.43,0.68]
[1758674527252,26.0,214.46,214.44,0.68]
[1758674527871,2.26485556,214.5,214.45,0.68]
[1758674528082,26.0,214.49,214.44,2.26485556]
[1758674528275,26.0,214.49,214.46,0.68]
[1758674528459,0.57,214.53,214.47,0.68]
[1758674528664,2.26485556,214.54,214.47,0.68]
[1758674528874,0.57,214.58,214.48,6.92729494]
[1758674529079,0.57,214.57,214.49,2.94485556]
[1758674529283,2.26485556,214.58,214.51,2.26485556]
[1758674529483,26.0,214.56,214.51,2.94485556]
[1758674529666,0.57,214.55,214.49,13.59559401]
[1758674530074,26.57,214.55,214.49,13.59559401]
[1758674530387,26.57,214.55,214.48,19.26339341]
[1758674530758,26.0,214.55,214.49,0.68]
[1758674531164,26.0,214.55,214.5,2.26485556]
[1758674531364,26.0,214.55,214.51,0.68]
[1758674531964,26.0,214.55,214.5,2.26485556]
[1758674532165,2.26485556,214.57,214.51,5.34178732]
[1758674532368,26.0,214.56,214.52,0.68]
[1758674532568,26.0,214.56,214.53,0.68]
[1758674534185,26.57,214.56,214.53,4.66134669]
[1758674535493,26.0,214.55,214.51,4.66178732]
[1758674535680,26.57,214.55,214.49,4.66201778]
[1758674535865,0.57,214.54,214.49,4.66201778]